[Event "NY Presidents Day Schiller-C 2024"]
[Site "New York"]
[Date "2024.02.17"]
[Round "3.5"]
[White "Tang, Benjamin"]
[Black "Plat, Vojtech"]
[Result "0-1"]
[ECO "C41"]
[WhiteElo "2167"]
[BlackElo "2516"]
[Annotator "RC"]
[PlyCount "110"]
[EventDate "2024.02.14"]
[EventType "schev"]
[EventCountry "USA"]
[SourceTitle "playchess.com"]
[Source "ChessBase"]
[SourceQuality "1"]
[TimeControl "5400+30"]

1. e4 {[%emt 0:02:16]} e5 {[%emt 0:09:02]} 2. Nf3 {[%emt 0:00:06]} d6 {[%emt 0:00:15]} 3. d4 {[%emt 0:00:33]} exd4 {[%emt 0:00:07]} 4. Nxd4 {[%emt 0:00:03]} Nf6 {[%emt 0:00:04]} 5. Nc3 {[%emt 0:00:09]} g6 {[%emt 0:00:03]} 6. Be3 {[%emt 0:09:47]} Bg7 {[%emt 0:00:36]} 7. f3 {[%emt 0:02:02]} O-O {[%emt 0:00:11]} 8. Qd2 {[%emt 0:00:15]} d5 {[%emt 0:00:05]} 9. O-O-O {[%emt 0:09:17]} dxe4 {[%emt 0:01:42]} 10. fxe4 {[%emt 0:00:54]} c5 {[%emt 0:03:07]} 11. Ndb5 {[%emt 0:06:53]} Qxd2+ {[%emt 0:00:35]} 12. Rxd2 {[%emt 0:04:11]} Nbd7 {[%emt 0:00:42]} 13. Kb1 {[%emt 0:07:42]} Ng4 {[%emt 0:04:59]} 14. Bf4 {[%emt 0:03:10]} Be5 {[%emt 0:00:10]} 15. g3 {[%emt 0:04:43]} Nb6 {[%emt 0:00:19]} 16. h3 {[%emt 0:46:29]} Bxf4 {[%emt 0:00:05]} 17. gxf4 {[%emt 0:00:00]} Ne3 {[%emt 0:00:07]} 18. Be2 {[%emt 0:00:00]} Bd7 {[%emt 0:01:42]} 19. Rd3 {[%emt 0:00:00]} Ng2 {[%emt 0:03:47]} 20. Rf1 {[%emt 0:00:00]} Nh4 {[%emt 0:04:36]} 21. Nc7 {[%emt 0:00:00]} Rab8 {[%emt 0:03:21]} 22. Rg1 {[%emt 0:00:00]} h6 {[%emt 0:02:59]} 23. Rd6 {[%emt 0:00:00]} Kg7 {[%emt 0:05:20]} 24. a4 {[%emt 0:00:00]} Bc8 {[%emt 0:02:43]} 25. N7b5 {[%emt 0:00:00]} Be6 {[%emt 0:04:10]} 26. Nxa7 {[%emt 0:00:00]} Nc8 {[%emt 0:01:07]} 27. Nxc8 {[%emt 0:05:30]} Bxc8 {[%emt 0:00:05]} 28. Rd5 {[%emt 0:00:00]} Kh7 {[%emt 0:01:49]} 29. Rxc5 {[%emt 0:00:00]} Rd8 {[%emt 0:01:32]} 30. Rd5 {[%emt 0:00:00]} Be6 {[%emt 0:00:10]} 31. Rxd8 {[%emt 0:00:00]} Rxd8 {[%emt 0:00:02]} 32. Kc1 {[%emt 0:00:00]} h5 {[%emt 0:00:24]} 33. Rg3 {[%emt 0:00:00]} Kh6 {[%emt 0:01:41]} 34. Bd3 {[%emt 0:00:00]} f6 {[%emt 0:00:10]} 35. Nb5 {[%emt 0:00:00]} Bf7 {[%emt 0:01:27]} 36. Kd2 {[%emt 0:00:00]} Be8 {[%emt 0:00:17]} 37. Ke3 {[%emt 0:00:00]} Bc6 {[%emt 0:00:14]} 38. b3 {[%emt 0:00:00]} Re8 {[%emt 0:00:06]} 39. Nc3 {[%emt 0:00:00]} Nf5+ {[%emt 0:00:02]} 40. Kf3 {[%emt 0:00:00]} Nxg3 {[%emt 0:00:13]} 41. Kxg3 {[%emt 0:00:00]} g5 {[%emt 0:00:42]} 42. f5 {[%emt 0:00:00]} h4+ {[%emt 0:01:03]} 43. Kf2 {[%emt 0:00:00]} g4 {[%emt 0:00:24]} 44. hxg4 {[%emt 0:00:00]} Kg5 {[%emt 0:00:01]} 45. Kf3 {[%emt 0:00:00]} Rh8 {[%emt 0:00:15]} 46. Ne2 {[%emt 0:00:00]} h3 {[%emt 0:00:38]} 47. Nf4 {[%emt 0:00:00]} Bd7 {[%emt 0:02:28]} 48. Nh5 {[%emt 0:00:00]} h2 {[%emt 0:01:05]} 49. Kg2 {[%emt 0:00:00]} Kxg4 {[%emt 0:00:24]} 50. Be2+ {[%emt 0:00:00]} Kg5 {[%emt 0:00:04]} 51. Kxh2 {[%emt 0:00:00]} Be8 {[%emt 0:00:04]} 52. Kg3 {[%emt 0:00:00]} Bxh5 {[%emt 0:00:06]} 53. Bd3 {[%emt 0:00:00]} b6 {[%emt 0:00:09]} 54. b4 {[%emt 0:00:00]} Ra8 {[%emt 0:00:08]} 55. Bb5 {[%emt 0:00:28]} Be8 {[%emt 0:00:55]} 0-1

[Event "NY Presidents Day Schiller-C 2024"]
[Site "New York"]
[Date "2024.02.17"]
[Round "3.6"]
[White "Meduri, Aakaash"]
[Black "Martin Del Campo Cardenas, Roberto Abel"]
[Result "0-1"]
[ECO "A48"]
[WhiteElo "1956"]
[BlackElo "2205"]
[Annotator "RC"]
[PlyCount "86"]
[EventDate "2024.02.14"]
[EventType "schev"]
[EventCountry "USA"]
[SourceTitle "playchess.com"]
[Source "ChessBase"]
[SourceQuality "1"]
[TimeControl "5400+30"]

1. d4 {[%emt 0:03:48]} Nf6 {[%emt 0:00:07]} 2. Bf4 {[%emt 0:00:09]} g6 {[%emt 0:03:13]} 3. e3 {[%emt 0:00:11]} Bg7 {[%emt 0:00:08]} 4. Be2 {[%emt 0:00:09]} d6 {[%emt 0:00:06]} 5. h3 {[%emt 0:00:07]} O-O {[%emt 0:00:16]} 6. Nf3 {[%emt 0:00:10]} c5 {[%emt 0:00:18]} 7. c3 {[%emt 0:00:15]} Nbd7 {[%emt 0:00:49]} 8. O-O {[%emt 0:00:21]} b6 {[%emt 0:00:06]} 9. a4 {[%emt 0:00:25]} a6 {[%emt 0:00:05]} 10. Nbd2 {[%emt 0:00:14]} Bb7 {[%emt 0:00:05]} 11. Bh2 {[%emt 0:00:16]} Qc7 {[%emt 0:00:51]} 12. Re1 {[%emt 0:00:24]} Bc6 {[%emt 0:02:17]} 13. Qc2 {[%emt 0:01:24]} Qb7 {[%emt 0:01:31]} 14. b4 {[%emt 0:00:49]} cxb4 {[%emt 0:01:57]} 15. cxb4 {[%emt 0:00:12]} Rfc8 {[%emt 0:04:00]} 16. Qb2 {[%emt 0:02:11]} Ne4 {[%emt 0:03:45]} 17. Nc4 {[%emt 0:02:10]} Bd5 {[%emt 0:06:55]} 18. Rec1 {[%emt 0:01:17]} Rc7 {[%emt 0:02:46]} 19. Bf1 {[%emt 0:03:58]} Rac8 {[%emt 0:03:29]} 20. Ncd2 {[%emt 0:12:30]} Nc3 {[%emt 0:06:35]} 21. Qa3 {[%emt 0:06:11]} a5 {[%emt 0:12:06]} 22. Kh1 {[%emt 0:06:08]} Nf6 {[%emt 0:05:06]} 23. Rc2 {[%emt 0:04:17]} Nfe4 {[%emt 0:06:15]} 24. Bg1 {[%emt 0:07:41]} e5 {[%emt 0:08:58]} 25. bxa5 {[%emt 0:05:56]} bxa5 {[%emt 0:00:42]} 26. Rb2 {[%emt 0:02:06]} Qa8 {[%emt 0:03:00]} 27. Nxe4 {[%emt 0:01:59]} Bxe4 {[%emt 0:00:55]} 28. Nd2 {[%emt 0:00:53]} exd4 {[%emt 0:00:47]} 29. f3 {[%emt 0:00:25]} dxe3 {[%emt 0:07:11]} 30. Nxe4 {[%emt 0:00:32]} Nxe4 {[%emt 0:00:04]} 31. fxe4 {[%emt 0:00:42]} Qxe4 {[%emt 0:00:41]} 32. Re1 {[%emt 0:01:41]} Bxb2 {[%emt 0:01:31]} 33. Qxb2 {[%emt 0:01:32]} Rc2 {[%emt 0:02:00]} 34. Qb5 {[%emt 0:05:41]} R8c3 {[%emt 0:01:33]} 35. Be2 {[%emt 0:01:06]} Qe5 {[%emt 0:06:26]} 36. Qb8+ {[%emt 0:03:06]} Rc8 {[%emt 0:01:09]} 37. Qb7 {[%emt 0:00:29]} Qc3 {[%emt 0:03:05]} 38. Qb1 {[%emt 0:02:08]} Qd2 {[%emt 0:04:18]} 39. Kh2 {[%emt 0:05:12]} Rc1 {[%emt 0:00:59]} 40. Rxc1 {[%emt 0:01:05]} Rxc1 {[%emt 0:00:02]} 41. Qb5 {[%emt 0:02:25]} Kg7 {[%emt 0:01:02]} 42. Qd3 {[%emt 0:01:58]} Re1 {[%emt 0:00:27]} 43. Bxe3 {[%emt 0:03:57]} Qxd3 {[%emt 0:00:05]} 0-1

[Event "NY Presidents Day Schiller-C 2024"]
[Site "New York"]
[Date "2024.02.17"]
[Round "3.7"]
[White "Yoo, Eugene"]
[Black "Podavonov, Alisher"]
[Result "1-0"]
[ECO "E69"]
[WhiteElo "2168"]
[BlackElo "2175"]
[Annotator "RC"]
[PlyCount "109"]
[EventDate "2024.02.14"]
[EventType "schev"]
[EventCountry "USA"]
[SourceTitle "playchess.com"]
[Source "ChessBase"]
[SourceQuality "1"]
[TimeControl "5400+30"]

1. d4 {[%emt 0:01:42]} Nf6 {[%emt 0:00:04]} 2. Nf3 {[%emt 0:00:03]} g6 {[%emt 0:00:05]} 3. g3 {[%emt 0:00:23]} Bg7 {[%emt 0:00:04]} 4. Bg2 {[%emt 0:00:04]} O-O {[%emt 0:00:04]} 5. c4 {[%emt 0:00:02]} d6 {[%emt 0:00:05]} 6. O-O {[%emt 0:00:19]} Nbd7 {[%emt 0:00:03]} 7. Nc3 {[%emt 0:00:51]} e5 {[%emt 0:00:10]} 8. h3 {[%emt 0:01:15]} c6 {[%emt 0:00:41]} 9. e4 {[%emt 0:00:34]} Qb6 {[%emt 0:01:38]} 10. c5 {[%emt 0:03:39]} dxc5 {[%emt 0:00:22]} 11. dxe5 {[%emt 0:00:09]} Ne8 {[%emt 0:00:12]} 12. e6 {[%emt 0:02:52]} fxe6 {[%emt 0:00:08]} 13. Ng5 {[%emt 0:00:31]} Ne5 {[%emt 0:00:21]} 14. f4 {[%emt 0:00:59]} Nf7 {[%emt 0:00:21]} 15. Nxf7 {[%emt 0:00:58]} Bd4+ {[%emt 0:00:51]} 16. Kh2 {[%emt 0:01:04]} Rxf7 {[%emt 0:00:06]} 17. e5 {[%emt 0:00:13]} Nc7 {[%emt 0:02:24]} 18. Ne4 {[%emt 0:05:29]} Bd7 {[%emt 0:07:58]} 19. h4 {[%emt 0:02:36]} Nd5 {[%emt 0:04:04]} 20. h5 {[%emt 0:01:53]} Raf8 {[%emt 0:05:38]} 21. Ng5 {[%emt 0:20:05]} Rg7 {[%emt 0:08:39]} 22. hxg6 {[%emt 0:05:39]} hxg6 {[%emt 0:01:14]} 23. Be4 {[%emt 0:00:36]} Rf5 {[%emt 0:15:24]} 24. Bxf5 {[%emt 0:01:35]} exf5 {[%emt 0:00:10]} 25. Qd3 {[%emt 0:09:20]} Nc7 {[%emt 0:12:02]} 26. Qc4+ {[%emt 0:09:26]} Kf8 {[%emt 0:00:13]} 27. Rb1 {[%emt 0:05:04]} Qb4 {[%emt 0:09:06]} 28. Qc2 {[%emt 0:06:13]} Qb5 {[%emt 0:07:06]} 29. Re1 {[%emt 0:01:21]} Ne6 {[%emt 0:07:10]} 30. Nf3 {[%emt 0:00:42]} c4 {[%emt 0:01:36]} 31. b3 {[%emt 0:08:34]} Qd5 {[%emt 0:03:22]} 32. Kg2 {[%emt 0:01:12]} c3 {[%emt 0:01:26]} 33. Rd1 {[%emt 0:01:06]} c5 {[%emt 0:05:24]} 34. Qxc3 {[%emt 0:02:14]} Bb5 {[%emt 0:01:45]} 35. Ba3 {[%emt 0:02:05]} Kf7 {[%emt 0:04:27]} 36. Rd2 {[%emt 0:03:16]} Rh7 {[%emt 0:00:32]} 37. Rbd1 {[%emt 0:01:15]} g5 {[%emt 0:02:47]} 38. Qc2 {[%emt 0:02:30]} Kg6 {[%emt 0:01:00]} 39. Qxc5 {[%emt 0:01:38]} Qxc5 {[%emt 0:00:42]} 40. Bxc5 {[%emt 0:00:01]} Bxc5 {[%emt 0:00:10]} 41. Rd6 {[%emt 0:00:50]} Bxd6 {[%emt 0:00:49]} 42. Rxd6 {[%emt 0:00:01]} Re7 {[%emt 0:00:30]} 43. Nd4 {[%emt 0:01:03]} Bd7 {[%emt 0:00:05]} 44. g4 {[%emt 0:00:00]} Kh7 {[%emt 0:00:34]} 45. gxf5 {[%emt 0:01:00]} Nxf4+ {[%emt 0:00:09]} 46. Kf3 {[%emt 0:00:25]} Bc6+ {[%emt 0:00:55]} 47. Nxc6 {[%emt 0:00:01]} bxc6 {[%emt 0:00:04]} 48. Ke4 {[%emt 0:01:42]} Kg8 {[%emt 0:01:04]} 49. Rxc6 {[%emt 0:00:00]} Ne2 {[%emt 0:00:21]} 50. f6 {[%emt 0:00:00]} Ng3+ {[%emt 0:00:24]} 51. Kd5 {[%emt 0:00:00]} Nf5 {[%emt 0:00:49]} 52. fxe7 {[%emt 0:00:33]} Nxe7+ {[%emt 0:00:01]} 53. Kd6 {[%emt 0:00:01]} Nxc6 {[%emt 0:00:01]} 54. Kxc6 {[%emt 0:00:15]} Kf7 {[%emt 0:00:29]} 55. Kd7 {[%emt 0:02:41]} 1-0

[Event "NY Presidents Day Schiller-C 2024"]
[Site "New York"]
[Date "2024.02.17"]
[Round "3.8"]
[White "Liu, Kelsey"]
[Black "Lapshun, Yury"]
[Result "0-1"]
[ECO "B54"]
[WhiteElo "2004"]
[BlackElo "2337"]
[Annotator "TA"]
[PlyCount "82"]
[EventDate "2024.02.14"]
[EventType "schev"]
[EventCountry "USA"]
[SourceTitle "playchess.com"]
[Source "ChessBase"]
[SourceQuality "1"]
[TimeControl "5400+30"]

{[%evp 10,81,30,36,32,29,26,29,31,0,0,0,11,0,8,0,13,0,0,-39,-34,-44,-35,-45,-29,-86,-78,-67,-37,-50,-35,-47,-42,-37,-58,-45,-45,-60,-55,-61,-59,-113,-5,-126,-104,-133,-131,-127,-141,-405,-396,-383,-389,-387,-379,-370,-381,-395,-381,-370,-356,-453,-611,-617,-602,-568,-486,-29977,-575,-29986,-29987,-29998,-29999,-29999]} 1. e4 {[%emt 0:00:03]} c5 {[%emt 0:15:59]} 2. Nc3 {[%emt 0:01:30]} Nc6 {[%emt 0:00:11]} 3. Nf3 {[%emt 0:00:33]} d6 {[%emt 0:01:14]} 4. d4 {[%emt 0:00:22]} cxd4 {[%emt 0:00:05]} 5. Nxd4 {[%emt 0:00:08]} e5 {[%emt 0:00:47]} 6. Nf5 {[%emt 0:02:20]} Bxf5 {[%emt 0:03:22]} 7. exf5 {[%emt 0:00:07]} Qd7 {[%emt 0:00:26]} 8. Nd5 {[%emt 0:07:11]} Nf6 {[%emt 0:03:13] White has an edge.} 9. Bb5 {[%emt 0:18:00]} Nxd5 $1 {[%emt 0:06:12]} 10. Qxd5 {[%emt 0:00:08]} Rc8 {[%emt 0:00:02][%cal Oa7a6]} 11. O-O {[%emt 0:06:19]} a6 {[%emt 0:07:54]} 12. Ba4 {[%emt 0:06:33]} Qxf5 {[%emt 0:09:38]} 13. f4 {[%emt 0:02:27]} Qe6 {[%emt 0:00:11]} 14. Qd1 {[%emt 0:07:18]} d5 {[%emt 0:00:55]} 15. fxe5 {[%emt 0:05:59]} Bc5+ {[%emt 0:00:12]} 16. Kh1 {[%emt 0:00:03]} O-O {[%emt 0:00:09]} 17. Bxc6 {[%emt 0:06:07]} (17. Bf4 $11) 17... Rxc6 $17 {[%emt 0:01:32][%cal Bc8c6,Bc6b6,Bb6b4,Bb4e4][%mdl 32]} 18. Bf4 {[%emt 0:00:19]} Rb6 {[%emt 0:00:23]} 19. Rb1 {[%emt 0:03:27]} Rb4 {[%emt 0:01:44]} 20. c3 {[%emt 0:00:27] Prevents Rd4} Re4 {[%emt 0:00:51]} 21. Qd3 {[%emt 0:01:57]} Rd8 {[%emt 0:07:46]} 22. Rbd1 {[%emt 0:02:17] [#] Qxe4 is the strong threat.} Rd7 {[%emt 0:01:26]} 23. h3 {[%emt 0:01:15]} b5 {[%emt 0:00:16]} 24. Qf3 {[%emt 0:09:34]} Bb6 {[%emt 0:02:55] Black is more active.} 25. Rd2 {[%emt 0:02:20]} (25. a3 $15) 25... Bc7 {[%emt 0:35:37]} ({Better is} 25... f5 $17 26. a3 (26. exf6 Rf7 $17) 26... h6) 26. Rfd1 {[%emt 0:06:26]} (26. Rd4 $11 {was the only way to keep the balance.}) 26... f5 {[%emt 0:00:00]} 27. Re2 {[%emt 0:02:26]} Bxe5 {[%emt 0:00:00]} 28. Bxe5 {[%emt 0:03:11]} Qxe5 {[%emt 0:00:00]} 29. Rxe4 {[%emt 0:01:35][%mdl 8192] This move loses the game for White.} (29. Rdd2 $17 {was called for.}) 29... dxe4 $19 {[%emt 0:00:00]} 30. Qe2 {[%emt 0:00:05]} Rxd1+ {[%emt 0:00:00]} 31. Qxd1 {[%emt 0:00:02][%mdl 4096] Endgame. KQ-KQ} e3 {[%emt 0:00:00] White must now prevent ...e2.} 32. Qe2 {[%emt 0:01:54]} Qe4 {[%emt 0:00:00]} 33. b3 {[%emt 0:01:27]} g5 {[%emt 0:00:00]} 34. c4 {[%emt 0:02:32]} bxc4 {[%emt 0:00:00]} 35. bxc4 {[%emt 0:00:02]} g4 {[%emt 0:00:00]} 36. hxg4 {[%emt 0:00:18]} fxg4 {[%emt 0:00:00] ...g3 would now be deadly.} 37. Kh2 {[%emt 0:01:40]} h5 {[%emt 0:00:00]} 38. Kg3 {[%emt 0:00:35] [#] Wards off Qf4+} (38. c5 $19 Qe5+ 39. g3 Qxc5 40. Qd3) 38... Kf7 {[%emt 0:00:00]} (38... Qe5+ $142 39. Kh4 Kg7 40. c5 Qf6+ (40... Qxc5 $2 41. Qb2+ Kg6 42. Qb8 $19) 41. Kxh5 Qf5+ 42. Kh4 Qf2+ (42... Qxc5 43. Kxg4 Qd4+ 44. Kf3 $11) 43. Qxf2 exf2 44. Kg5 f1=Q (44... f1=B $2 45. g3 $19) 45. c6 Qxg2 46. c7 Qc2 (46... Qxa2 47. c8=Q $11) 47. Kxg4 Kf6 (47... Qxc7 {leads to mate.} 48. Kf5 Qe7 49. Kf4 Kf6 50. Kf3 Kf5 51. Kf2 Kf4 52. a4 Qe3+ 53. Kg2 Qg3+ 54. Kh1 Kf3 55. a5 Qg2#) 48. c8=R Qxc8+ 49. Kf4 Qc4+ 50. Ke3 Ke5 (50... Qxa2 51. Kd4 Qc2 52. Kd5 Qc3 53. Ke4 Qd2 54. Kf3 Kf5 55. Kg3 Qe2 56. Kh3 Kf4 57. Kh4 Qh2#) 51. Kf3 Qc3+ (51... Qxa2 52. Ke3 Qc2 53. Kf3 Qc3+ 54. Ke2 Kf4 55. Kd1 Qb2 56. Ke1 Ke3 57. Kf1 Qf2#) 52. Kf2 Kf4 53. Kg2 Qb2+ 54. Kh1 Kg3 55. Kg1 Qg2#) 39. Qf1+ {[%emt 0:00:26]} Kg6 {[%emt 0:00:00] Black mates.} 40. Qe2 {[%emt 0:00:35]} Qe5+ {[%emt 0:00:00]} 41. Kh4 {[%emt 0:00:10]} Qh2# {[%emt 0:00:00] Weighted Error Value: White=0.56/Black=0.28 (precise) .  Loses game:     	White=1     	---        Mistake:       	White=3     	Black=2      Inaccurate:     	White=2     	Black=1      OK:         	White=6     	Black=13     Best:        	White=2     	---        Strong:       	---       	Black=1} 0-1

[Event "NY Presidents Day Schiller-C 2024"]
[Site "New York"]
[Date "2024.02.17"]
[Round "3.9"]
[White "Campos Jimenez, Augusto Cesar"]
[Black "Gaw, Chloe"]
[Result "1-0"]
[ECO "B30"]
[WhiteElo "2288"]
[BlackElo "1928"]
[Annotator "TA"]
[PlyCount "59"]
[EventDate "2024.02.14"]
[EventType "schev"]
[EventCountry "USA"]
[SourceTitle "playchess.com"]
[Source "ChessBase"]
[SourceQuality "1"]
[TimeControl "5400+30"]

{[%evp 12,59,28,13,14,8,33,25,20,25,29,33,39,41,102,89,86,60,107,97,119,113,179,169,252,261,273,233,563,557,541,548,671,675,658,631,683,677,678,681,913,902,799,664,1157,1152,1147,1153,29984,5581]} 1. e4 {[%emt 0:11:09]} c5 {[%emt 0:00:04]} 2. Nc3 {[%emt 0:00:06]} Nc6 {[%emt 0:00:06]} 3. Bb5 {[%emt 0:00:06]} Nd4 {[%emt 0:00:03]} 4. Bc4 {[%emt 0:00:11]} e6 {[%emt 0:01:06]} 5. Nf3 {[%emt 0:00:07]} Ne7 {[%emt 0:02:40]} 6. Nxd4 {[%emt 0:01:11]} cxd4 {[%emt 0:00:04]} 7. Ne2 {[%emt 0:00:10]} Nc6 {[%emt 0:00:28]} 8. d3 {[%emt 0:00:06]} Be7 {[%emt 0:02:13]} 9. O-O {[%emt 0:00:08]} O-O {[%emt 0:00:23] White has an edge.} 10. a3 {[%emt 0:01:44]} a6 {[%emt 0:02:15]} 11. Ba2 {[%emt 0:01:56]} b5 {[%emt 0:02:54]} 12. f4 {[%emt 0:00:39][%cal Bf2f4,Bf4f5][%mdl 32]} d5 {[%emt 0:13:38]} (12... a5 $14) 13. exd5 $16 {[%emt 0:02:27]} exd5 {[%emt 0:00:12]} 14. f5 {[%emt 0:00:29]} Bf6 {[%emt 0:03:11]} (14... Bb7 $14 {feels stronger.}) 15. Ng3 {[%emt 0:00:38]} Ne7 {[%emt 0:09:43]} 16. Qg4 {[%emt 0:05:18] Black must now prevent Nh5.} Kh8 {[%emt 0:08:30] [#]} (16... g6 $16) 17. Nh5 $1 $18 {[%emt 0:05:40]} Nxf5 {[%emt 0:07:38]} (17... Ng8 $142 18. Nxf6 Nxf6 19. Qxd4 Rb8) 18. Rxf5 {[%emt 0:02:33]} Qd7 {[%emt 0:03:21]} 19. Ng3 {[%emt 0:12:28]} (19. Bxd5 Qxf5 20. Qxf5 Bxf5 $16) 19... g6 {[%emt 0:05:19] [#] Prevents Qh5.} (19... Qe8 {is a better chance.} 20. Bxd5 g6) 20. Bg5 $1 {[%emt 0:00:25]} Bg7 {[%emt 0:04:46] [#]} 21. Qh4 $1 {[%emt 0:06:32]} gxf5 {[%emt 0:06:56]} (21... Qc7 22. Rf2) 22. Bf6 {[%emt 0:00:50] White wants to mate with Qh6.} Qe6 {[%emt 0:04:07]} 23. Bxg7+ {[%emt 0:05:26]} (23. Bxd4 Qg6 $11) 23... Kxg7 {[%emt 0:00:06] [#]} 24. Bxd5 $1 {[%emt 0:02:07][%mdl 512]} Qe3+ {[%emt 0:14:43]} 25. Kf1 {[%emt 0:00:15] And now Nh5+ would win.} Be6 {[%emt 0:02:32]} 26. Nh5+ {[%emt 0:01:35]} Kg6 {[%emt 0:00:56]} 27. Bxa8 {[%emt 0:01:19]} (27. Qf6+ Kxh5 28. Bf3+ (28. Bxa8 $2 Rxa8 29. Qg7 h6 $19) 28... Qxf3+ 29. gxf3 Rg8 $18) 27... Rxa8 {[%emt 0:00:36]} 28. Nf4+ {[%emt 0:00:07]} Kg7 {[%emt 0:00:10]} 29. Re1 {[%emt 0:00:36]} Qd2 {[%emt 0:00:55]} 30. Qg5+ {[%emt 0:00:08] White took control after the opening.   Weighted Error Value: White=0.21 (precise) /Black=0.83.  Mistake:       	---       	Black=5      Inaccurate:     	White=1     	---        OK:         	White=4     	Black=3      Best:        	White=2     	---        Strong:       	White=2     	---} (30. Nxe6+ $142 fxe6 31. Qe7+ (31. Qxd4+ Kg8 $18) 31... Kh8 32. Qf6+ (32. Qxe6 Qf4+ 33. Kg1 Qg5 $18) 32... Kg8 33. Qxe6+ (33. Rxe6 Qf4+ 34. Kg1 Qc1+ 35. Kf2 Qf4+ 36. Ke2 Rc8 $16) 33... Kg7 34. Qd7+ (34. Qxf5 $2 {perishes.} Rf8 $19) 34... Kh8 35. Qxd4+ (35. Qxf5 Qh6 $18) 35... Kg8 36. Qd5+ Kf8 37. Qxa8+ Kf7 38. Qe8+ (38. Qxa6 Qf4+ 39. Kg1 Qd4+ 40. Kh1 Qg4 $18) 38... Kf6 39. Re6+ Kg5 40. Qg8+ (40. Rxa6 Qd1+ 41. Qe1 Qxe1+ 42. Kxe1 h5 43. Rb6 f4 44. Rxb5+ Kg6) 40... Kh5 41. Qxh7+ Kg4 42. Qh3+ (42. Rxa6 Qd1+ 43. Kf2 Qd2+ 44. Kf1 Qd1+ 45. Kf2 Qd2+ 46. Kf1 $11) 42... Kg5 43. Qh6+ (43. Rxa6 Qd1+ 44. Kf2 Qxc2+ 45. Ke3 Qc1+ 46. Kd4 Qxb2+ 47. Kd5 Qa2+ 48. Kd6 Qf2 $18) 43... Kg4 44. Rg6+ Qg5 45. Qxg5#) 1-0

[Event "NY Presidents Day Schiller-C 2024"]
[Site "New York"]
[Date "2024.02.17"]
[Round "4.1"]
[White "Shangin, Lev"]
[Black "Czebe, Attila"]
[Result "0-1"]
[ECO "B07"]
[WhiteElo "1866"]
[BlackElo "2346"]
[Annotator "TA"]
[PlyCount "90"]
[EventDate "2024.02.14"]
[EventType "schev"]
[EventCountry "USA"]
[SourceTitle "playchess.com"]
[Source "ChessBase"]
[SourceQuality "1"]
[TimeControl "5400+30"]

{[%evp 9,90,21,21,-9,0,0,0,-4,14,8,8,16,12,0,-8,0,0,0,9,20,0,-9,14,-8,-8,-21,-9,-31,0,0,1,-30,-34,-49,0,-17,-12,-88,-73,-179,-172,-214,-126,-209,-137,-144,-141,-158,-116,-147,-152,-159,-147,-159,-140,-128,-129,-247,-129,-537,-517,-519,-501,-1368,-1249,-1400,-1380,-1918,-1784,-5618,-5185,-29985,-29986,-29987,-29988,-29990,-29991,-29994,-29995,-29996,-29996,-29997,-29998]} 1. d4 {[%emt 0:00:02]} d6 {[%emt 0:07:47]} 2. e4 {[%emt 0:00:16]} Nf6 {[%emt 0:00:10]} 3. Nc3 {[%emt 0:00:14]} a6 {[%emt 0:00:11]} 4. Bd3 {[%emt 0:02:47]} e5 {[%emt 0:00:26]} 5. Nge2 {[%emt 0:00:46]} Be7 {[%emt 0:00:09]} 6. f3 {[%emt 0:00:56]} O-O {[%emt 0:00:10]} 7. Be3 {[%emt 0:00:26]} exd4 {[%emt 0:02:01]} 8. Nxd4 {[%emt 0:01:17] The position is equal.} c5 {[%emt 0:05:58]} 9. Nde2 {[%emt 0:00:35][%cal Bd4e2,Be2f4,Bf4d5][%mdl 32]} b5 {[%emt 0:02:37]} 10. Nf4 {[%emt 0:01:32]} Nbd7 {[%emt 0:00:17]} 11. a4 {[%emt 0:03:25]} b4 {[%emt 0:02:20]} 12. Ncd5 {[%emt 0:00:26]} Nxd5 {[%emt 0:00:26]} 13. Nxd5 {[%emt 0:00:29]} Bh4+ {[%emt 0:03:59]} 14. g3 {[%emt 0:00:50]} Bf6 {[%emt 0:00:01]} 15. Rb1 {[%emt 0:02:08]} Bb7 {[%emt 0:00:22]} 16. Nxf6+ {[%emt 0:04:04]} Qxf6 {[%emt 0:00:08]} 17. O-O {[%emt 0:00:10][%cal Oc2c3]} Rfe8 {[%emt 0:02:56]} 18. c4 {[%emt 0:07:23]} bxc3 {[%emt 0:00:24]} 19. bxc3 {[%emt 0:00:02]} Bc6 {[%emt 0:00:47]} 20. c4 {[%emt 0:03:15]} Rab8 {[%emt 0:00:38]} 21. Kg2 {[%emt 0:06:13]} Rb4 {[%emt 0:00:55]} 22. Rxb4 {[%emt 0:04:57]} cxb4 {[%emt 0:00:13]} 23. Qc2 {[%emt 0:01:45]} (23. a5 $11) 23... Nc5 {[%emt 0:02:01]} 24. Bxc5 {[%emt 0:01:13]} (24. a5 $17 {is a better defense.}) 24... dxc5 $19 {[%emt 0:00:05]} 25. Rd1 {[%emt 0:01:43]} Rd8 {[%emt 0:00:25]} ({Black should try} 25... a5 $19 26. Be2 g5) 26. Be2 {[%emt 0:00:23]} (26. a5 $17) 26... Rd4 {[%emt 0:01:16]} 27. Rxd4 {[%emt 0:03:38]} Qxd4 $17 {[%emt 0:00:09][%mdl 4096] Endgame. KQB-KQB} ({But not} 27... cxd4 $6 28. c5 $11) 28. Qd1 {[%emt 0:01:21]} Kf8 $36 {[%emt 0:01:03][%mdl 2048] Black is really pushing. Black has more active pieces.} 29. Qxd4 {[%emt 0:02:51]} cxd4 {[%emt 0:00:06] KB-KB} 30. Bd1 {[%emt 0:00:54]} Ke7 {[%emt 0:00:05]} 31. Kf2 {[%emt 0:00:37]} Kd6 {[%emt 0:00:18]} 32. Ke2 {[%emt 0:00:39]} Kc5 {[%emt 0:01:19]} 33. Kd3 {[%emt 0:00:17] [#]} (33. Bb3 $17) 33... a5 {[%emt 0:00:29]} ({Better is} 33... Bd7 $1 $19 {[%cal Rd7h3] Strongly threatening ...Bh3.} 34. g4 g6) 34. f4 $2 {[%emt 0:02:32][%mdl 8192] [#] This move loses the game for White.} (34. g4 $17 {is tougher.}) 34... f5 $1 $19 {[%emt 0:05:14][%mdl 512]} 35. exf5 {[%emt 0:02:51]} Bg2 {[%emt 0:00:08] Hoping for ...Bf1+.} 36. h4 {[%emt 0:02:16]} (36. Be2 $142 b3 37. g4) 36... Bf1+ {[%emt 0:00:11]} 37. Kd2 {[%emt 0:00:11]} Bxc4 {[%emt 0:03:53]} 38. g4 {[%emt 0:04:37]} b3 {[%emt 0:00:11]} 39. Kc1 {[%emt 0:01:55]} Kb4 {[%emt 0:00:07][%cal Ob4c3] ( -> ...Kc3!)} 40. Kb2 {[%emt 0:00:19]} Kxa4 {[%emt 0:00:11] Black mates.} 41. g5 {[%emt 0:00:21]} Kb4 {[%emt 0:00:07]} 42. h5 {[%emt 0:00:17]} a4 {[%emt 0:00:11]} 43. h6 {[%emt 0:01:19]} a3+ {[%emt 0:00:03]} 44. Ka1 {[%emt 0:00:05]} b2+ {[%emt 0:00:06]} 45. Kb1 {[%emt 0:00:03]} Kc3 {[%emt 0:00:03] Weighted Error Value: White=0.75/Black=0.13 (very precise) .  Loses game:     	White=1     	---        Mistake:       	White=5     	Black=2      Inaccurate:     	White=1     	Black=3      OK:         	White=9     	Black=11     Best:        	---       	Black=2      Brilliant:      	---       	Black=1} 0-1